[Event "FRA-ch Women 2018"]
[Site "Nimes"]
[Date "2018.08.22"]
[Round "5"]
[White "Haussernot, Cecile"]
[Black "Guichard, Pauline"]
[Result "1-0"]
[ECO "C41"]
[WhiteElo "2198"]
[BlackElo "2365"]
[Annotator "NA"]
[PlyCount "87"]
[EventDate "2018.08.18"]
[EventType "tourn"]
[EventCountry "FRA"]
[SourceTitle "playchess.com"]
[Source "ChessBase"]
[SourceQuality "1"]
[TimeControl "40/5400+30:1800+30"]

1. e4 {[%emt 0:05:19]} d6 {[%emt 0:00:00]} 2. d4 {[%emt 0:00:26]} Nf6 {[%emt 0:00:00]} 3. Nc3 {[%emt 0:00:14]} e5 {[%emt 0:00:00]} 4. Nf3 {[%emt 0:00:04]} Nbd7 {[%emt 0:00:03]} 5. Bc4 {[%emt 0:00:08]} Be7 {[%emt 0:00:11]} 6. a4 {[%emt 0:00:08]} O-O {[%emt 0:00:08]} 7. O-O {[%emt 0:00:08]} exd4 {[%emt 0:00:07]} 8. Nxd4 {[%emt 0:00:57]} Nb6 {[%emt 0:00:09]} 9. Ba2 {[%emt 0:02:26]} a5 {[%emt 0:00:13]} 10. Bg5 {[%emt 0:00:54]} Nfd5 {[%emt 0:13:10]} 11. Nxd5 {[%emt 0:13:50]} Nxd5 {[%emt 0:01:53]} 12. Bxe7 {[%emt 0:02:59]} Nxe7 {[%emt 0:00:08]} 13. f4 {[%emt 0:02:51]} d5 {[%emt 0:10:58]} 14. e5 {[%emt 0:13:49]} Ra6 {[%emt 0:03:12]} 15. c3 {[%emt 0:02:20]} Rh6 {[%emt 0:01:33]} 16. Qf3 $14 {[%emt 0:01:51]} c6 {[%emt 0:07:58]} 17. Rad1 {[%emt 0:05:30]} Nf5 {[%emt 0:11:42]} 18. Bb1 {[%emt 0:04:02]} Nxd4 {[%emt 0:02:45]} 19. Rxd4 {[%emt 0:00:17]} f6 {[%emt 0:00:51]} 20. Re1 {[%emt 0:03:35]} fxe5 {[%emt 0:01:12]} 21. Rxe5 {[%emt 0:00:11]} Qh4 {[%emt 0:00:27]} 22. h3 {[%emt 0:01:06]} Qf6 {[%emt 0:04:08]} 23. Qe3 {[%emt 0:02:02]} Be6 {[%emt 0:15:30]} 24. Bc2 {[%emt 0:09:28]} Bf7 {[%emt 0:01:55]} 25. g4 {[%emt 0:06:26]} c5 {[%emt 0:03:28]} 26. Rd2 {[%emt 0:00:44]} Qb6 {[%emt 0:01:26]} 27. g5 {[%emt 0:04:27]} Rd6 {[%emt 0:05:53]} 28. Kh2 {[%emt 0:02:51]} d4 {[%emt 0:01:02]} 29. cxd4 {[%emt 0:02:49]} Rxd4 {[%emt 0:00:33]} 30. Rxd4 {[%emt 0:00:24]} cxd4 {[%emt 0:00:05]} 31. Qe4 {[%emt 0:00:18]} Bg6 {[%emt 0:09:18]} 32. f5 {[%emt 0:02:21]} d3 {[%emt 0:00:11]} 33. Bxd3 {[%emt 0:05:20]} Qxb2+ {[%emt 0:02:31]} 34. Kg3 {[%emt 0:00:32]} Bf7 {[%emt 0:02:15]} 35. Re7 {[%emt 0:02:33]} Qd2 {[%emt 0:01:24]} 36. Rxf7 {[%emt 0:03:22]} Qxg5+ {[%emt 0:00:08]} 37. Kf2 {[%emt 0:00:40]} Qd2+ {[%emt 0:00:44]} 38. Kf3 {[%emt 0:00:14]} Qd1+ {[%emt 0:00:15]} 39. Kg3 {[%emt 0:00:49]} Qg1+ {[%emt 0:00:25]} 40. Kh4 {[%emt 0:00:34]} Qf2+ {[%emt 0:01:27]} 41. Kh5 {[%emt 0:30:32]} Rc8 {[%emt 0:04:46]} 42. Bc4 {[%emt 0:00:00]} Kh8 {[%emt 0:02:52]} 43. Qg4 {[%emt 0:00:00]} Rg8 {[%emt 0:01:23]} 44. Qxg7+ {[%emt 0:00:00]} 1-0

[Event "FRA-ch Women 2018"]
[Site "Nimes"]
[Date "2018.08.22"]
[Round "5"]
[White "Safranska, Anda"]
[Black "Monpeurt, Cyrielle"]
[Result "1-0"]
[ECO "A08"]
[WhiteElo "2193"]
[BlackElo "2175"]
[Annotator "NA"]
[PlyCount "169"]
[EventDate "2018.08.18"]
[EventType "tourn"]
[EventCountry "FRA"]
[SourceTitle "playchess.com"]
[Source "ChessBase"]
[SourceQuality "1"]
[TimeControl "40/5400+30:1800+30"]

1. Nf3 {[%emt 0:00:00]} d5 {[%emt 0:00:00]} 2. g3 {[%emt 0:00:00]} c5 {[%emt 0:00:25]} 3. Bg2 {[%emt 0:00:00]} Nf6 {[%emt 0:00:46]} 4. d3 {[%emt 0:00:00]} e6 {[%emt 0:00:46]} 5. O-O {[%emt 0:00:13]} Be7 {[%emt 0:00:38]} 6. Nbd2 {[%emt 0:00:11]} Nc6 {[%emt 0:00:45]} 7. e4 {[%emt 0:00:11]} b6 {[%emt 0:03:20]} 8. Re1 {[%emt 0:00:35]} Bb7 {[%emt 0:01:33]} 9. a3 {[%emt 0:01:50]} Qc7 {[%emt 0:02:31]} 10. Qe2 {[%emt 0:01:14]} O-O {[%emt 0:02:37]} 11. e5 {[%emt 0:07:16] C00: French: Unusual White 2nd moves} Nd7 {[%emt 0:01:05]} 12. c4 $146 {[%emt 0:02:15]} ({Predecessor:} 12. h4 Rae8 13. Bh3 f5 14. exf6 Bxf6 15. Bxe6+ Kh8 16. Qd1 Qd6 {1-0 (60) Movsziszian,K (2570)-Salvador,R (2447) Imperia 2009}) 12... Rfd8 {[%emt 0:02:32]} 13. cxd5 {[%emt 0:07:24]} exd5 {[%emt 0:01:12]} 14. e6 {[%emt 0:00:04]} Nf8 {[%emt 0:02:48]} 15. exf7+ {[%emt 0:00:12]} Kxf7 {[%emt 0:00:18]} 16. Nf1 {[%emt 0:10:45]} (16. d4 $5) 16... Bf6 {[%emt 0:13:54]} 17. Bg5 {[%emt 0:01:20]} Re8 {[%emt 0:06:14]} 18. Qd2 {[%emt 0:02:30]} d4 {[%emt 0:15:46]} 19. Bxf6 {[%emt 0:01:07]} gxf6 {[%emt 0:03:04]} 20. Qh6 {[%emt 0:01:50]} Ne7 {[%emt 0:08:16]} 21. N1d2 {[%emt 0:02:56]} Neg6 {[%emt 0:03:14]} 22. Ne4 {[%emt 0:10:20]} Bxe4 {[%emt 0:04:22]} 23. dxe4 {[%emt 0:00:41]} Rad8 {[%emt 0:00:26]} 24. Red1 {[%emt 0:19:36]} Kg8 {[%emt 0:02:24]} 25. Nh4 {[%emt 0:04:22]} Nxh4 {[%emt 0:02:11]} 26. Qxh4 {[%emt 0:00:07]} Qg7 {[%emt 0:03:23]} 27. Rac1 {[%emt 0:06:33]} Ng6 {[%emt 0:01:34]} 28. Qh5 {[%emt 0:01:08]} Re5 {[%emt 0:11:44]} 29. Qe2 {[%emt 0:03:02]} Qd7 {[%emt 0:00:42]} 30. Bf1 {[%emt 0:02:35]} a5 {[%emt 0:02:15]} 31. f4 {[%emt 0:02:33]} Ree8 {[%emt 0:00:06]} 32. Qc4+ {[%emt 0:01:03]} Kh8 {[%emt 0:00:17]} 33. Qd3 {[%emt 0:03:47]} Rc8 {[%emt 0:03:09]} 34. Re1 {[%emt 0:01:17]} Qg7 {[%emt 0:01:20]} 35. Qf3 {[%emt 0:02:16]} Qd7 {[%emt 0:00:59]} 36. Qb3 {[%emt 0:01:44]} Qd6 {[%emt 0:00:36]} 37. a4 {[%emt 0:00:59]} Rg8 {[%emt 0:00:29]} 38. Kh1 {[%emt 0:00:23]} Rc7 {[%emt 0:00:26]} 39. Bc4 {[%emt 0:00:25]} Rd8 {[%emt 0:00:30]} 40. Rcd1 {[%emt 0:00:10]} Rg7 {[%emt 0:00:40]} 41. Qf3 {[%emt 0:30:21]} Re7 {[%emt 0:04:18]} 42. b3 {[%emt 0:00:00]} Nf8 {[%emt 0:03:34]} 43. Rd2 {[%emt 0:00:00]} Nd7 {[%emt 0:02:30]} 44. Qh5 {[%emt 0:00:00]} Rde8 {[%emt 0:02:44]} 45. Qf5 {[%emt 0:00:00]} Nf8 {[%emt 0:03:12]} 46. Bb5 {[%emt 0:00:00]} Rd8 {[%emt 0:01:01]} 47. Bc4 {[%emt 0:00:00]} Rde8 {[%emt 0:00:04]} 48. Kg1 {[%emt 0:00:00]} Ng6 {[%emt 0:02:37]} 49. h4 {[%emt 0:00:00]} Rg7 {[%emt 0:02:52]} 50. Kf2 {[%emt 0:00:00]} Qd7 {[%emt 0:04:38]} 51. Qxd7 {[%emt 0:00:00]} Rxd7 {[%emt 0:00:05]} 52. Bb5 {[%emt 0:00:00]} Rde7 {[%emt 0:00:03]} 53. Bxe8 {[%emt 0:00:00]} Rxe8 {[%emt 0:00:03]} 54. h5 {[%emt 0:00:00]} Ne7 {[%emt 0:00:47]} 55. g4 {[%emt 0:00:00]} Nc6 {[%emt 0:00:18]} 56. Kf3 {[%emt 0:00:00]} Kg7 {[%emt 0:00:29]} 57. Rg1 {[%emt 0:00:00]} Kf7 {[%emt 0:00:23]} 58. g5 {[%emt 0:00:00]} f5 {[%emt 0:00:31]} 59. g6+ {[%emt 0:00:00]} hxg6 {[%emt 0:00:17]} 60. hxg6+ {[%emt 0:00:00]} Kg7 {[%emt 0:00:16]} 61. exf5 {[%emt 0:00:00]} Re3+ {[%emt 0:00:04]} 62. Kg4 {[%emt 0:00:00]} Ne7 {[%emt 0:01:42]} 63. Kg5 {[%emt 0:00:00]} Nd5 {[%emt 0:00:17]} 64. f6+ {[%emt 0:00:34]} Nxf6 {[%emt 0:00:04]} 65. Rh2 {[%emt 0:07:26]} d3 {[%emt 0:01:20]} 66. Kf5 {[%emt 0:00:53]} Re8 {[%emt 0:01:32]} 67. Rd1 {[%emt 0:02:00]} Rd8 {[%emt 0:00:06]} 68. Rh3 {[%emt 0:01:08]} d2 {[%emt 0:01:11]} 69. Rh2 {[%emt 0:00:14]} Rd5+ {[%emt 0:02:38]} 70. Ke6 {[%emt 0:00:05]} Rd4 {[%emt 0:00:43]} 71. Rdxd2 {[%emt 0:03:46]} Rxf4 {[%emt 0:00:05]} 72. Rd6 {[%emt 0:01:15]} Kxg6 {[%emt 0:01:58]} 73. Rg2+ {[%emt 0:00:30]} Ng4 {[%emt 0:00:05]} 74. Kd7+ {[%emt 0:00:25]} Kf7 {[%emt 0:00:46]} 75. Rxb6 {[%emt 0:00:47]} Nf6+ {[%emt 0:00:27]} 76. Kc6 {[%emt 0:00:37]} Ne4 {[%emt 0:01:03]} 77. Rb7+ {[%emt 0:00:37]} Kf6 {[%emt 0:00:22]} 78. Rc2 {[%emt 0:00:23]} Rf5 {[%emt 0:00:58]} 79. Rc4 {[%emt 0:00:41]} Re5 {[%emt 0:00:27]} 80. Rb6 {[%emt 0:00:59]} Re6+ {[%emt 0:00:15]} 81. Kc7 {[%emt 0:00:11]} Ng5 {[%emt 0:01:59]} 82. Rxe6+ {[%emt 0:00:15]} Nxe6+ {[%emt 0:00:04]} 83. Kb6 {[%emt 0:00:06]} Nd4 {[%emt 0:00:17]} 84. Rc3 {[%emt 0:00:20]} Ke6 {[%emt 0:00:18]} 85. Kxc5 {[%emt 0:00:18] Kd5+} 1-0

[Event "FRA-ch Women 2018"]
[Site "Nimes"]
[Date "2018.08.23"]
[Round "6"]
[White "Milliet, Sophie"]
[Black "Monpeurt, Cyrielle"]
[Result "1/2-1/2"]
[ECO "B30"]
[WhiteElo "2389"]
[BlackElo "2175"]
[Annotator "NA"]
[PlyCount "93"]
[EventDate "2018.08.18"]
[EventType "tourn"]
[EventCountry "FRA"]
[SourceTitle "playchess.com"]
[Source "ChessBase"]
[SourceQuality "1"]
[TimeControl "40/5400+30:1800+30"]

1. e4 {[%emt 0:00:00]} c5 {[%emt 0:00:00]} 2. Nf3 {[%emt 0:00:07]} Nc6 {[%emt 0:00:00]} 3. Nc3 {[%emt 0:06:19]} Nf6 {[%emt 0:00:01]} 4. Bb5 {[%emt 0:01:21]} Qc7 {[%emt 0:00:15]} 5. O-O {[%emt 0:00:16]} a6 {[%emt 0:01:32]} 6. Bxc6 {[%emt 0:01:10]} dxc6 {[%emt 0:00:17]} 7. e5 {[%emt 0:05:04]} Nd5 {[%emt 0:00:17]} 8. Ne4 {[%emt 0:01:16]} Bg4 {[%emt 0:01:55] LiveBook: 16 Games} 9. Nxc5 {[%emt 0:02:08]} e6 {[%emt 0:00:32]} 10. Nb3 {[%emt 0:06:34]} Bxf3 {[%emt 0:01:37]} 11. Qxf3 {[%emt 0:00:04]} Qxe5 {[%emt 0:00:15]} 12. d4 {[%emt 0:03:23]} Qf6 {[%emt 0:03:59]} 13. Qe2 {[%emt 0:02:55]} Bd6 {[%emt 0:05:48]} 14. c4 {[%emt 0:00:58]} Ne7 $11 {[%emt 0:05:14]} 15. Bd2 {[%emt 0:06:09]} O-O {[%emt 0:06:01]} 16. Bc3 {[%emt 0:00:12]} Qh6 {[%emt 0:00:55]} 17. g3 {[%emt 0:00:48]} b5 {[%emt 0:19:10]} 18. Na5 {[%emt 0:03:21]} Rab8 {[%emt 0:08:54]} 19. a4 {[%emt 0:07:03]} Rfc8 {[%emt 0:09:54]} 20. Rfd1 {[%emt 0:06:35]} Qh3 {[%emt 0:04:12]} 21. axb5 {[%emt 0:07:57]} axb5 {[%emt 0:00:10]} 22. b3 {[%emt 0:00:22]} h5 {[%emt 0:01:30]} 23. Qf3 {[%emt 0:18:00]} h4 {[%emt 0:01:56]} 24. Bd2 {[%emt 0:00:43]} hxg3 {[%emt 0:10:07]} 25. hxg3 {[%emt 0:00:01]} Nf5 {[%emt 0:05:13]} 26. Nxc6 {[%emt 0:13:10]} Rxc6 {[%emt 0:02:30]} 27. Qxc6 {[%emt 0:00:03]} Nxd4 {[%emt 0:00:07]} 28. Qg2 {[%emt 0:01:36]} Qh5 {[%emt 0:03:03]} 29. g4 {[%emt 0:01:02]} Qh4 {[%emt 0:01:37]} 30. Ra8 {[%emt 0:02:41]} Qf6 {[%emt 0:05:07]} 31. Rxb8+ {[%emt 0:00:15]} Bxb8 {[%emt 0:00:02]} 32. f4 {[%emt 0:02:19]} Nxb3 {[%emt 0:02:14]} 33. Be3 {[%emt 0:00:38]} bxc4 {[%emt 0:00:46]} 34. Qa8 {[%emt 0:00:11]} Qh4 {[%emt 0:00:24]} 35. Qxb8+ {[%emt 0:01:16]} Kh7 {[%emt 0:00:04]} 36. Kf1 {[%emt 0:01:21]} Qh3+ {[%emt 0:01:13]} 37. Kf2 {[%emt 0:00:16]} Qh2+ {[%emt 0:00:49]} 38. Kf3 {[%emt 0:00:15]} Qh3+ {[%emt 0:00:48]} 39. Kf2 {[%emt 0:00:10]} Qh2+ {[%emt 0:00:11]} 40. Kf3 {[%emt 0:01:26]} Qh3+ {[%emt 0:00:04]} 41. Ke2 {[%emt 0:17:10]} Qg2+ {[%emt 0:03:31]} 42. Ke1 {[%emt 0:00:51]} Qh1+ {[%emt 0:00:30]} 43. Ke2 {[%emt 0:00:05]} Qg2+ {[%emt 0:00:17]} 44. Bf2 {[%emt 0:10:43]} Qe4+ {[%emt 0:00:22]} 45. Be3 {[%emt 0:00:50]} Qg2+ {[%emt 0:00:17]} 46. Ke1 {[%emt 0:00:27]} Qh1+ {[%emt 0:00:11]} 47. Ke2 {[%emt 0:00:04]} 1/2-1/2

[Event "FRA-ch Women 2018"]
[Site "Nimes"]
[Date "2018.08.23"]
[Round "6"]
[White "Guichard, Pauline"]
[Black "Safranska, Anda"]
[Result "1-0"]
[ECO "A04"]
[WhiteElo "2365"]
[BlackElo "2193"]
[Annotator "NA"]
[PlyCount "111"]
[EventDate "2018.08.18"]
[EventType "tourn"]
[EventCountry "FRA"]
[SourceTitle "playchess.com"]
[Source "ChessBase"]
[SourceQuality "1"]
[TimeControl "40/5400+30:1800+30"]

1. Nf3 {[%emt 0:00:00]} g6 {[%emt 0:00:00]} 2. d4 {[%emt 0:00:00]} Bg7 {[%emt 0:00:00]} 3. b3 {[%emt 0:01:46]} Nf6 {[%emt 0:00:42]} 4. Bb2 {[%emt 0:00:15]} O-O {[%emt 0:01:10]} 5. g3 {[%emt 0:00:51]} d6 {[%emt 0:00:50]} 6. Bg2 {[%emt 0:00:31]} e5 {[%emt 0:00:44]} 7. dxe5 {[%emt 0:01:53]} Ng4 {[%emt 0:00:05]} 8. O-O {[%emt 0:03:15]} Nc6 {[%emt 0:01:38]} 9. c4 {[%emt 0:06:51]} Ngxe5 {[%emt 0:04:25]} 10. Nxe5 {[%emt 0:03:28]} dxe5 {[%emt 0:01:09]} 11. Nc3 {[%emt 0:01:18] LiveBook: 10 Games} Be6 {[%emt 0:00:34] A49: Königsindisch (ohne c2-c4)} 12. Bxc6 $146 {[%emt 0:13:06]} ({Vorgänger:} 12. Qxd8 Rfxd8 13. Nd5 Rd7 14. Rfd1 Rad8 15. Bc3 f6 16. Rd2 Kf7 17. Rad1 Re8 18. Ne3 Rxd2 19. Rxd2 {1-0 (61) Rozum,I (2547)-Gogin,M (2220) St Petersburg 2015}) 12... bxc6 {[%emt 0:00:11]} 13. Qxd8 {[%emt 0:00:07]} Rfxd8 {[%emt 0:00:48]} 14. Rfd1 {[%emt 0:00:15]} f6 {[%emt 0:13:29]} 15. Ba3 {[%emt 0:04:16]} Kf7 {[%emt 0:04:28]} 16. Na4 {[%emt 0:02:06]} Re8 {[%emt 0:03:09]} 17. Bc5 {[%emt 0:07:53]} a5 {[%emt 0:03:52]} 18. Rd2 {[%emt 0:03:03]} Bh6 $11 {[%emt 0:00:51]} 19. e3 {[%emt 0:01:44]} Red8 {[%emt 0:08:06]} 20. Rad1 {[%emt 0:00:50]} Rxd2 {[%emt 0:00:07]} 21. Rxd2 {[%emt 0:00:04]} Bg7 {[%emt 0:03:57]} 22. f3 {[%emt 0:02:52]} h5 {[%emt 0:00:32]} 23. e4 {[%emt 0:06:34]} Bh6 {[%emt 0:02:11]} 24. Rd1 {[%emt 0:01:54]} Bg7 {[%emt 0:00:34]} 25. Kg2 {[%emt 0:00:54]} Bh6 {[%emt 0:04:46]} 26. Bf2 {[%emt 0:02:37]} Bf8 {[%emt 0:05:18]} 27. Be3 {[%emt 0:00:15]} Ke8 {[%emt 0:03:21]} 28. Kf2 {[%emt 0:03:23]} Rb8 {[%emt 0:13:25]} 29. Bd2 {[%emt 0:01:13]} Ra8 {[%emt 0:00:14]} 30. Bc3 {[%emt 0:00:14]} Kf7 {[%emt 0:00:45]} 31. Rd3 {[%emt 0:02:17]} Bd6 {[%emt 0:02:04]} 32. Rd1 {[%emt 0:02:58]} Be7 {[%emt 0:00:43]} 33. Ke3 {[%emt 0:00:52]} Bd6 {[%emt 0:00:28]} 34. f4 {[%emt 0:09:22]} exf4+ {[%emt 0:01:56]} 35. gxf4 {[%emt 0:00:09]} Bf8 {[%emt 0:01:05]} 36. e5 {[%emt 0:01:53]} Bg4 {[%emt 0:01:29]} 37. Re1 {[%emt 0:02:36]} fxe5 {[%emt 0:00:09]} 38. Bxe5 {[%emt 0:01:25]} Re8 {[%emt 0:02:05]} 39. c5 {[%emt 0:04:20]} Bh6 {[%emt 0:02:20]} 40. Ke4 {[%emt 0:03:37]} Bf5+ {[%emt 0:02:42]} 41. Kf3 {[%emt 0:30:23]} Bg4+ {[%emt 0:32:17]} 42. Kg3 {[%emt 0:00:00]} Rd8 {[%emt 0:00:00]} 43. Nb2 {[%emt 0:00:00]} Rd2 {[%emt 0:00:00]} 44. Nc4 {[%emt 0:00:00]} Rxa2 {[%emt 0:00:00]} 45. Bxc7 {[%emt 0:00:00]} Be2 {[%emt 0:00:00]} 46. Ne5+ {[%emt 0:00:00]} Ke6 {[%emt 0:00:00]} 47. Nxg6 {[%emt 0:00:00]} Kd5 {[%emt 0:00:00]} 48. Bd6 {[%emt 0:00:00]} Bd3 {[%emt 0:04:50]} 49. Ne7+ {[%emt 0:00:00]} Kd4 {[%emt 0:00:05]} 50. Nxc6+ {[%emt 0:00:00]} Kc3 {[%emt 0:00:05]} 51. Ne5 {[%emt 0:00:00]} Bf5 {[%emt 0:00:32]} 52. Nf3 {[%emt 0:00:00]} Kd3 {[%emt 0:04:13]} 53. c6 {[%emt 0:00:00]} Rc2 {[%emt 0:00:57]} 54. c7 {[%emt 0:01:50]} Bg7 {[%emt 0:01:03]} 55. Re7 {[%emt 0:04:13]} h4+ {[%emt 0:00:20]} 56. Nxh4 {[%emt 0:00:30]} 1-0

[Event "FRA-ch Women 2018"]
[Site "Nimes"]
[Date "2018.08.23"]
[Round "6"]
[White "Afraoui, Anaelle"]
[Black "Leconte, Maria"]
[Result "0-1"]
[ECO "B15"]
[WhiteElo "2041"]
[BlackElo "2224"]
[Annotator "NA"]
[PlyCount "94"]
[EventDate "2018.08.18"]
[EventType "tourn"]
[EventCountry "FRA"]
[SourceTitle "playchess.com"]
[Source "ChessBase"]
[SourceQuality "1"]
[TimeControl "40/5400+30:1800+30"]

1. e4 {[%emt 0:00:00]} c6 {[%emt 0:03:25]} 2. d4 {[%emt 0:00:00]} d5 {[%emt 0:00:04]} 3. Nc3 {[%emt 0:00:00]} dxe4 {[%emt 0:00:06]} 4. Nxe4 {[%emt 0:00:04]} Nf6 {[%emt 0:00:03]} 5. Nxf6+ {[%emt 0:00:38]} exf6 {[%emt 0:01:13]} 6. c3 {[%emt 0:02:01]} Bd6 {[%emt 0:00:07]} 7. Bd3 {[%emt 0:01:25]} O-O {[%emt 0:00:08]} 8. Qc2 {[%emt 0:00:51]} Re8+ {[%emt 0:00:08]} 9. Be3 {[%emt 0:01:56]} h5 {[%emt 0:04:19]} 10. Ne2 {[%emt 0:02:35]} Nd7 {[%emt 0:01:54]} 11. O-O-O {[%emt 0:01:43]} Nf8 $14 {[%emt 0:13:41] LiveBook: 12 Games} 12. Kb1 {[%emt 0:07:26]} b5 {[%emt 0:05:39]} 13. Ng3 {[%emt 0:02:34]} Qa5 {[%emt 0:08:47]} 14. Be4 {[%emt 0:15:48]} Be6 {[%emt 0:23:50]} 15. d5 {[%emt 0:09:54]} cxd5 {[%emt 0:00:31]} 16. Bxd5 {[%emt 0:00:47]} b4 {[%emt 0:13:05]} 17. c4 {[%emt 0:10:01]} Rac8 {[%emt 0:01:32]} 18. Bxe6 {[%emt 0:04:44]} Rxe6 {[%emt 0:00:11]} 19. Rd5 {[%emt 0:03:27]} Qa6 {[%emt 0:02:29]} 20. c5 {[%emt 0:09:06]} g6 {[%emt 0:00:31]} 21. Rhd1 {[%emt 0:01:08]} Be7 {[%emt 0:01:14]} 22. Qd2 {[%emt 0:03:03]} Qb7 {[%emt 0:01:19]} 23. Ne2 {[%emt 0:01:06]} Rec6 {[%emt 0:02:10]} 24. Rc1 {[%emt 0:02:25]} Ne6 {[%emt 0:00:36]} 25. Rd7 {[%emt 0:01:04]} R8c7 {[%emt 0:00:04]} 26. Rxc7 {[%emt 0:01:16]} Rxc7 {[%emt 0:00:16]} 27. c6 {[%emt 0:06:17]} Rxc6 {[%emt 0:00:35]} 28. Rxc6 {[%emt 0:00:39]} Qxc6 {[%emt 0:00:03]} 29. g3 {[%emt 0:04:41]} Bc5 {[%emt 0:02:06]} 30. Bxc5 {[%emt 0:03:05]} Qxc5 {[%emt 0:00:13]} 31. Nc1 {[%emt 0:00:54]} a5 {[%emt 0:01:19]} 32. Nb3 {[%emt 0:00:59]} Qe5 {[%emt 0:00:28]} 33. Nc1 {[%emt 0:00:59]} Kg7 {[%emt 0:00:27]} 34. f4 {[%emt 0:01:59]} Qe4+ {[%emt 0:05:01]} 35. Qd3 {[%emt 0:01:16]} f5 {[%emt 0:01:45]} 36. Ka1 {[%emt 0:01:12]} Nd4 {[%emt 0:01:49]} 37. h3 {[%emt 0:00:54]} h4 {[%emt 0:01:42]} 38. gxh4 {[%emt 0:00:21]} Qxf4 {[%emt 0:00:14]} 39. Kb1 {[%emt 0:00:32]} Qxh4 {[%emt 0:00:16]} 40. a3 {[%emt 0:00:36]} Qe4 {[%emt 0:02:29]} 41. axb4 {[%emt 0:03:07]} axb4 {[%emt 0:00:12]} 42. Ka2 {[%emt 0:01:49]} b3+ {[%emt 0:01:13]} 43. Ka3 {[%emt 0:01:30]} Qd5 {[%emt 0:05:40]} 44. Kb4 {[%emt 0:05:41]} f4 {[%emt 0:01:30]} 45. Ne2 {[%emt 0:02:44]} Nc6+ {[%emt 0:04:48]} 46. Kc3 {[%emt 0:00:17]} Qe5+ {[%emt 0:00:17]} 47. Kxb3 {[%emt 0:03:19]} Qxe2 {[%emt 0:00:47]} 0-1

[Event "FRA-ch Women 2018"]
[Site "Nimes"]
[Date "2018.08.24"]
[Round "7"]
[White "Leconte, Maria"]
[Black "Navrotescu, Andreea-Cristiana"]
[Result "1-0"]
[ECO "C48"]
[WhiteElo "2224"]
[BlackElo "2247"]
[Annotator "NA"]
[PlyCount "127"]
[EventDate "2018.08.18"]
[EventType "tourn"]
[EventCountry "FRA"]
[SourceTitle "playchess.com"]
[Source "ChessBase"]
[SourceQuality "1"]
[TimeControl "40/5400+30:1800+30"]

1. e4 {[%emt 0:03:32]} e5 {[%emt 0:00:00]} 2. Nf3 {[%emt 0:02:34]} Nc6 {[%emt 0:00:00]} 3. Nc3 {[%emt 0:00:12]} Nf6 {[%emt 0:00:00]} 4. Bb5 {[%emt 0:01:02]} Bd6 {[%emt 0:00:04]} 5. d3 {[%emt 0:00:16]} a6 {[%emt 0:00:10] C48: Vierspringerspiel (Rubinstein-Variante)} 6. Bc4 {[%emt 0:03:11]} (6. Ba4 b5 7. Bb3 Na5 8. d4 exd4 9. Qxd4 O-O 10. Bg5 Be7 11. e5 Ne8 12. Bxe7 Qxe7 13. Nd5 {½-½ (63) Hou,Y (2658)-Ponomariov,R (2686) Shenzhen 2018}) 6... h6 {[%emt 0:01:11]} 7. a3 {[%emt 0:00:47]} b5 {[%emt 0:03:09] LiveBook: 4 Games} 8. Ba2 {[%emt 0:01:15]} Bc5 {[%emt 0:00:19]} 9. Nxe5 $146 {[%emt 0:15:19]} ({Vorgänger:} 9. O-O O-O 10. b4 Ba7 11. Bb2 d6 12. Nd5 Bg4 13. Nxf6+ Qxf6 {0-1 (50) Kirchner,M (1360)-Kieselmann,H (1524) Lieme 2007}) 9... Nxe5 {[%emt 0:03:03]} 10. d4 {[%emt 0:00:05]} Bd6 {[%emt 0:00:12]} 11. f4 {[%emt 0:02:34]} ({White should try} 11. dxe5 $14 Bxe5 12. Ne2) 11... Nc4 {[%emt 0:05:45]} 12. e5 {[%emt 0:03:04]} O-O {[%emt 0:07:10]} 13. O-O {[%emt 0:02:12]} Be7 {[%emt 0:03:52]} 14. exf6 {[%emt 0:19:37]} Bxf6 {[%emt 0:00:07]} 15. Bxc4 {[%emt 0:00:13]} bxc4 {[%emt 0:00:02]} 16. Nd5 {[%emt 0:00:23]} Bb7 {[%emt 0:02:10]} 17. Ne3 {[%emt 0:05:46]} Qe7 {[%emt 0:02:36]} 18. c3 {[%emt 0:00:11]} Qe4 {[%emt 0:03:09]} 19. Qg4 {[%emt 0:02:03]} c5 {[%emt 0:07:36]} 20. d5 {[%emt 0:09:00]} Bxd5 {[%emt 0:11:38]} 21. Nxd5 {[%emt 0:00:06]} Qxd5 {[%emt 0:00:01]} 22. f5 {[%emt 0:00:13]} Kh7 {[%emt 0:01:28]} 23. Rd1 {[%emt 0:00:35]} Qe5 {[%emt 0:01:46]} 24. Qxc4 {[%emt 0:00:39]} Qxf5 {[%emt 0:01:27]} 25. Be3 {[%emt 0:08:25]} Rfe8 {[%emt 0:04:52]} 26. Bxc5 {[%emt 0:01:07]} Re4 {[%emt 0:05:45]} 27. Bd4 {[%emt 0:03:14]} Rae8 {[%emt 0:08:35]} 28. Rf1 {[%emt 0:00:25]} Qg6 {[%emt 0:02:49]} 29. Rad1 {[%emt 0:09:54]} Re2 {[%emt 0:02:56]} 30. Bf2 {[%emt 0:00:46]} Rxb2 {[%emt 0:01:09]} 31. Rxd7 {[%emt 0:00:33]} Ree2 {[%emt 0:00:34]} 32. Rxf7 {[%emt 0:01:06]} Re4 {[%emt 0:10:17]} 33. Qd3 {[%emt 0:02:46]} Be5 {[%emt 0:00:50]} 34. Bg3 {[%emt 0:01:26]} Bxg3 $11 {[%emt 0:00:56]} 35. hxg3 {[%emt 0:00:52]} Rb5 {[%emt 0:03:10]} 36. R7f4 {[%emt 0:00:32]} Rbe5 {[%emt 0:01:29]} 37. c4 {[%emt 0:00:14]} h5 {[%emt 0:04:44]} 38. Rxe4 {[%emt 0:00:15]} Rxe4 {[%emt 0:00:02]} 39. c5 {[%emt 0:01:09]} Kh6 {[%emt 0:01:22]} 40. Qd2+ {[%emt 0:00:09]} Kh7 {[%emt 0:00:06]} 41. Rf4 {[%emt 0:07:02]} Re5 {[%emt 0:01:48]} 42. Qc3 {[%emt 0:04:26]} Rg5 {[%emt 0:06:25]} 43. Kh2 {[%emt 0:00:48]} Qc6 {[%emt 0:00:23]} 44. Qc2+ {[%emt 0:02:22]} Kg8 {[%emt 0:01:46]} 45. Rf5 {[%emt 0:01:24]} Rg6 {[%emt 0:04:09]} 46. Rxh5 {[%emt 0:02:53]} Rh6 {[%emt 0:00:01]} 47. g4 {[%emt 0:02:07]} Qf6 {[%emt 0:01:49]} 48. Qc4+ {[%emt 0:02:16]} Kf8 {[%emt 0:00:54]} 49. Qe4 {[%emt 0:02:15]} Kg8 {[%emt 0:05:45]} 50. Qe8+ {[%emt 0:03:06]} Kh7 {[%emt 0:00:01]} 51. Rxh6+ {[%emt 0:00:08]} gxh6 {[%emt 0:00:01]} 52. Qe4+ {[%emt 0:00:20]} Kg7 {[%emt 0:00:14]} 53. c6 {[%emt 0:00:57]} Qd6+ {[%emt 0:00:04]} 54. g3 {[%emt 0:01:03]} Qxa3 {[%emt 0:03:25]} 55. Qe5+ {[%emt 0:02:03]} Kg6 {[%emt 0:03:04]} 56. c7 {[%emt 0:00:38]} Qa2+ {[%emt 0:00:04]} 57. Kg1 {[%emt 0:00:45]} Qb1+ {[%emt 0:00:13]} 58. Kf2 {[%emt 0:00:06]} Qc2+ {[%emt 0:00:38]} 59. Ke3 {[%emt 0:00:35]} Qc1+ {[%emt 0:00:34]} 60. Kd4 {[%emt 0:00:09]} Qd1+ {[%emt 0:00:45]} 61. Kc5 {[%emt 0:00:16]} Qxg4 {[%emt 0:01:18]} 62. Qe8+ {[%emt 0:00:34]} Kf6 {[%emt 0:00:20]} 63. Qf8+ {[%emt 0:00:44]} Ke5 {[%emt 0:00:38]} 64. Qe7+ {[%emt 0:00:54] Kd5+} 1-0